[Event "Titled Tuesday Blitz October 31 Early 2023"]
[White "Heinemann, Josefine"]
[Black "Naroditsky, Daniel"]
[WhiteFideId "12900460"]
[BlackFideId "2026961"]
[WhiteElo "2523"]
[BlackElo "3183"]
[Result "0-1"]
[Round "1"]
[TimeControl "180+1"]
[Date "2023.10.31"]
[WhiteClock "0:00:08"]
[BlackClock "0:01:02"]
[Board "2"]

1. e4 {[%clk 0:02:59]}  c5 {[%clk 0:02:55]} 2. c3 {[%clk 0:02:58]}  d5 {[%clk 0:02:54]} 3. exd5 {[%clk 0:02:57]}  Nf6 {[%clk 0:02:53]} 4. Bb5+ {[%clk 0:02:56]}  Nbd7 {[%clk 0:02:52]} 5. d4 {[%clk 0:02:52]}  a6 {[%clk 0:02:48]} 6. Be2 {[%clk 0:02:51]}  Nxd5 {[%clk 0:02:47]} 7. Nf3 {[%clk 0:02:50]}  e6 {[%clk 0:02:47]} 8. O-O {[%clk 0:02:49]}  Be7 {[%clk 0:02:47]} 9. c4 {[%clk 0:02:48]}  N5f6 {[%clk 0:02:47]} 10. Nc3 {[%clk 0:02:46]}  cxd4 {[%clk 0:02:46]} 11. Nxd4 {[%clk 0:02:45]}  Qc7 {[%clk 0:02:46]} 12. a3 {[%clk 0:02:43]}  O-O {[%clk 0:02:44]} 13. b4 {[%clk 0:02:36]}  Rd8 {[%clk 0:02:41]} 14. Qb3 {[%clk 0:02:16]}  b6 {[%clk 0:02:24]} 15. Be3 {[%clk 0:02:10]}  Bb7 {[%clk 0:02:23]} 16. Rac1 {[%clk 0:02:10]}  Rac8 {[%clk 0:02:22]} 17. Rfd1 {[%clk 0:02:08]}  h6 {[%clk 0:02:20]} 18. Na4 {[%clk 0:02:01]}  Ne5 {[%clk 0:02:00]} 19. c5 {[%clk 0:01:38]}  Neg4 {[%clk 0:02:00]} 20. g3 {[%clk 0:01:06]}  Nxe3 {[%clk 0:01:50]} 21. Qxe3 {[%clk 0:01:07]}  Nd5 {[%clk 0:01:44]} 22. Qb3 {[%clk 0:01:01]}  b5 {[%clk 0:01:43]} 23. Nb2 {[%clk 0:01:00]}  Bf6 {[%clk 0:01:42]} 24. Bf3 {[%clk 0:00:55]}  Ne7 {[%clk 0:01:31]} 25. Bxb7 {[%clk 0:00:52]}  Qxb7 {[%clk 0:01:32]} 26. Ne2 {[%clk 0:00:45]}  Qe4 {[%clk 0:01:23]} 27. Nf4 {[%clk 0:00:37]}  Nc6 {[%clk 0:01:22]} 28. Rxd8+ {[%clk 0:00:19]}  Rxd8 {[%clk 0:01:23]} 29. Rd1 {[%clk 0:00:20]}  Nd4 {[%clk 0:01:09]} 30. Qa2 {[%clk 0:00:09]}  Nf3+ {[%clk 0:01:04]} 31. Kf1 {[%clk 0:00:09]}  Nxh2+ {[%clk 0:01:04]} 32. Kg1 {[%clk 0:00:10]}  Nf3+ {[%clk 0:01:05]} 33. Kf1 {[%clk 0:00:10]}  Rxd1+ {[%clk 0:01:01]} 34. Nxd1 {[%clk 0:00:08]}  Qe1+ {[%clk 0:01:02]} 0-1


[Site "https://www.chess.com"]

[Event "Titled Tuesday Blitz October 31 Early 2023"]
[White "Camilla_Lee"]
[Black "Andreikin, Dmitry"]
[BlackFideId "4158814"]
[WhiteElo "2522"]
[BlackElo "3096"]
[Result "0-1"]
[Round "1"]
[TimeControl "180+1"]
[Date "2023.10.31"]
[WhiteClock "0:00:01"]
[BlackClock "0:01:09"]
[Board "4"]

1. e4 {[%clk 0:03:00]}  c5 {[%clk 0:02:57]} 2. Nf3 {[%clk 0:02:53]}  e6 {[%clk 0:02:56]} 3. c3 {[%clk 0:02:50]}  Nf6 {[%clk 0:02:53]} 4. e5 {[%clk 0:02:44]}  Nd5 {[%clk 0:02:53]} 5. d4 {[%clk 0:02:44]}  cxd4 {[%clk 0:02:53]} 6. cxd4 {[%clk 0:02:44]}  b6 {[%clk 0:02:54]} 7. Bd3 {[%clk 0:02:42]}  Bb7 {[%clk 0:02:54]} 8. O-O {[%clk 0:02:41]}  d6 {[%clk 0:02:52]} 9. Nc3 {[%clk 0:02:35]}  Nd7 {[%clk 0:02:50]} 10. Re1 {[%clk 0:02:30]}  Nxc3 {[%clk 0:02:48]} 11. bxc3 {[%clk 0:02:30]}  Qc7 {[%clk 0:02:47]} 12. Bb2 {[%clk 0:02:15]}  Be7 {[%clk 0:02:39]} 13. c4 {[%clk 0:02:00]}  dxe5 {[%clk 0:02:33]} 14. Nxe5 {[%clk 0:01:53]}  Nxe5 {[%clk 0:02:32]} 15. Rxe5 {[%clk 0:01:47]}  Bf6 {[%clk 0:02:32]} 16. Re3 {[%clk 0:01:44]}  Rd8 {[%clk 0:02:17]} 17. Qg4 {[%clk 0:01:19]}  h5 {[%clk 0:02:06]} 18. Qe2 {[%clk 0:00:58]}  Bxd4 {[%clk 0:02:04]} 19. Bxd4 {[%clk 0:00:58]}  Rxd4 {[%clk 0:02:04]} 20. Be4 {[%clk 0:00:58]}  Rxe4 {[%clk 0:01:43]} 21. Rxe4 {[%clk 0:00:55]}  Bxe4 {[%clk 0:01:43]} 22. Qxe4 {[%clk 0:00:55]}  O-O {[%clk 0:01:44]} 23. Rd1 {[%clk 0:00:41]}  g6 {[%clk 0:01:44]} 24. g3 {[%clk 0:00:34]}  Rc8 {[%clk 0:01:42]} 25. Rc1 {[%clk 0:00:27]}  Qc5 {[%clk 0:01:40]} 26. Qd3 {[%clk 0:00:25]}  b5 {[%clk 0:01:37]} 27. Qd7 {[%clk 0:00:19]}  bxc4 {[%clk 0:01:36]} 28. Rb1 {[%clk 0:00:19]}  Qc7 {[%clk 0:01:25]} 29. Qd4 {[%clk 0:00:13]}  c3 {[%clk 0:01:25]} 30. Rc1 {[%clk 0:00:13]}  c2 {[%clk 0:01:25]} 31. Qd3 {[%clk 0:00:10]}  Kg7 {[%clk 0:01:20]} 32. h4 {[%clk 0:00:10]}  Qc5 {[%clk 0:01:19]} 33. Qd2 {[%clk 0:00:08]}  Qc3 {[%clk 0:01:18]} 34. Qd7 {[%clk 0:00:01]}  Rb8 {[%clk 0:01:09]} 0-1


[Site "https://www.chess.com"]

[Event "Titled Tuesday Blitz October 31 Early 2023"]
[White "Nilsen, Tobias Lang"]
[Black "Caruana, Fabiano"]
[WhiteFideId "1521624"]
[BlackFideId "2020009"]
[WhiteElo "2518"]
[BlackElo "3078"]
[Result "1/2-1/2"]
[Round "1"]
[TimeControl "180+1"]
[Date "2023.10.31"]
[WhiteClock "0:00:13"]
[BlackClock "0:00:17"]
[Board "8"]

1. e4 {[%clk 0:02:55]}  c6 {[%clk 0:02:59]} 2. Nc3 {[%clk 0:02:53]}  d5 {[%clk 0:02:58]} 3. Nf3 {[%clk 0:02:53]}  Bg4 {[%clk 0:02:57]} 4. h3 {[%clk 0:02:53]}  Bxf3 {[%clk 0:02:57]} 5. Qxf3 {[%clk 0:02:54]}  e6 {[%clk 0:02:58]} 6. d3 {[%clk 0:02:54]}  Nf6 {[%clk 0:02:56]} 7. Bd2 {[%clk 0:02:54]}  Nbd7 {[%clk 0:02:54]} 8. O-O-O {[%clk 0:02:54]}  d4 {[%clk 0:02:54]} 9. Ne2 {[%clk 0:02:54]}  Qb6 {[%clk 0:02:54]} 10. g4 {[%clk 0:02:54]}  a5 {[%clk 0:02:37]} 11. g5 {[%clk 0:02:54]}  Ng8 {[%clk 0:02:37]} 12. Qg3 {[%clk 0:02:43]}  Bb4 {[%clk 0:02:36]} 13. f4 {[%clk 0:02:42]}  Ne7 {[%clk 0:02:35]} 14. h4 {[%clk 0:02:41]}  c5 {[%clk 0:02:28]} 15. Bh3 {[%clk 0:02:40]}  Nc6 {[%clk 0:02:28]} 16. h5 {[%clk 0:02:38]}  Bxd2+ {[%clk 0:01:51]} 17. Rxd2 {[%clk 0:02:39]}  g6 {[%clk 0:01:52]} 18. f5 {[%clk 0:02:25]}  O-O-O {[%clk 0:01:51]} 19. fxe6 {[%clk 0:02:23]}  fxe6 {[%clk 0:01:52]} 20. Bxe6 {[%clk 0:02:22]}  Nb4 {[%clk 0:01:44]} 21. Nf4 {[%clk 0:02:08]}  Qd6 {[%clk 0:01:35]} 22. a3 {[%clk 0:01:49]}  Nc6 {[%clk 0:01:33]} 23. Bxd7+ {[%clk 0:01:43]}  Qxd7 {[%clk 0:01:24]} 24. Rdh2 {[%clk 0:01:37]}  gxh5 {[%clk 0:01:15]} 25. Rxh5 {[%clk 0:01:35]}  Ne7 {[%clk 0:00:34]} 26. Rxh7 {[%clk 0:01:25]}  Rxh7 {[%clk 0:00:34]} 27. Rxh7 {[%clk 0:01:25]}  Qd6 {[%clk 0:00:31]} 28. Nh5 {[%clk 0:01:02]}  Qe6 {[%clk 0:00:25]} 29. Nf6 {[%clk 0:00:52]}  Rf8 {[%clk 0:00:25]} 30. Qh3 {[%clk 0:00:51]}  Qxh3 {[%clk 0:00:24]} 31. Rxh3 {[%clk 0:00:52]}  Ng6 {[%clk 0:00:23]} 32. Rh6 {[%clk 0:00:51]}  Ne5 {[%clk 0:00:22]} 33. b3 {[%clk 0:00:35]}  b5 {[%clk 0:00:20]} 34. g6 {[%clk 0:00:30]}  Rxf6 {[%clk 0:00:20]} 35. g7 {[%clk 0:00:31]}  Rf1+ {[%clk 0:00:14]} 36. Kb2 {[%clk 0:00:31]}  Rg1 {[%clk 0:00:14]} 37. Rh8+ {[%clk 0:00:31]}  Kc7 {[%clk 0:00:15]} 38. g8=Q {[%clk 0:00:32]}  Rxg8 {[%clk 0:00:15]} 39. Rxg8 {[%clk 0:00:33]}  c4 {[%clk 0:00:16]} 40. b4 {[%clk 0:00:33]}  axb4 {[%clk 0:00:15]} 41. axb4 {[%clk 0:00:33]}  cxd3 {[%clk 0:00:16]} 42. cxd3 {[%clk 0:00:34]}  Nxd3+ {[%clk 0:00:17]} 43. Kb3 {[%clk 0:00:34]}  Kd6 {[%clk 0:00:17]} 44. Kc2 {[%clk 0:00:32]}  Nxb4+ {[%clk 0:00:17]} 45. Kd2 {[%clk 0:00:33]}  Kc5 {[%clk 0:00:07]} 46. Rc8+ {[%clk 0:00:31]}  Kd6 {[%clk 0:00:07]} 47. Rb8 {[%clk 0:00:28]}  Kc5 {[%clk 0:00:08]} 48. Rh8 {[%clk 0:00:25]}  Kd6 {[%clk 0:00:08]} 49. Rh5 {[%clk 0:00:24]}  Kc6 {[%clk 0:00:08]} 50. Rh6+ {[%clk 0:00:20]}  Kc5 {[%clk 0:00:08]} 51. e5 {[%clk 0:00:19]}  Kd5 {[%clk 0:00:08]} 52. e6 {[%clk 0:00:20]}  Nc6 {[%clk 0:00:09]} 53. Kd3 {[%clk 0:00:19]}  Ne5+ {[%clk 0:00:09]} 54. Kd2 {[%clk 0:00:20]}  Nc6 {[%clk 0:00:09]} 55. Rh5+ {[%clk 0:00:13]}  Kxe6 {[%clk 0:00:09]} 56. Rxb5 {[%clk 0:00:14]}  Ne5 {[%clk 0:00:10]} 57. Ke2 {[%clk 0:00:09]}  Kf5 {[%clk 0:00:09]} 58. Kd2 {[%clk 0:00:09]}  Ke4 {[%clk 0:00:10]} 59. Rxe5+ {[%clk 0:00:07]}  Kxe5 {[%clk 0:00:10]} 60. Kd3 {[%clk 0:00:08]}  Kd5 {[%clk 0:00:11]} 61. Kd2 {[%clk 0:00:09]}  Ke4 {[%clk 0:00:12]} 62. Ke2 {[%clk 0:00:10]}  Kd5 {[%clk 0:00:12]} 63. Kd3 {[%clk 0:00:10]}  Kc5 {[%clk 0:00:13]} 64. Kd2 {[%clk 0:00:11]}  Kc4 {[%clk 0:00:14]} 65. Kc2 {[%clk 0:00:11]}  Kc5 {[%clk 0:00:15]} 66. Kd3 {[%clk 0:00:12]}  Kd5 {[%clk 0:00:16]} 67. Kd2 {[%clk 0:00:13]}  Ke5 {[%clk 0:00:16]} 68. Kd3 {[%clk 0:00:13]}  Kd5 {[%clk 0:00:17]} 1/2-1/2


[Site "https://www.chess.com"]

[Event "Titled Tuesday Blitz October 31 Early 2023"]
[White "Estrada Nieto, Julian"]
[Black "Keymer, Vincent"]
[WhiteFideId "5101018"]
[BlackFideId "12940690"]
[WhiteElo "2516"]
[BlackElo "3051"]
[Result "0-1"]
[Round "1"]
[TimeControl "180+1"]
[Date "2023.10.31"]
[WhiteClock "0:00:00"]
[BlackClock "0:00:46"]
[Board "10"]

1. e4 {[%clk 0:03:00]}  c6 {[%clk 0:02:53]} 2. d4 {[%clk 0:03:00]}  d5 {[%clk 0:02:54]} 3. Nc3 {[%clk 0:03:00]}  dxe4 {[%clk 0:02:54]} 4. Nxe4 {[%clk 0:03:00]}  Nf6 {[%clk 0:02:55]} 5. Nxf6+ {[%clk 0:03:00]}  exf6 {[%clk 0:02:56]} 6. c3 {[%clk 0:03:00]}  Bd6 {[%clk 0:02:56]} 7. Bd3 {[%clk 0:03:00]}  O-O {[%clk 0:02:57]} 8. Ne2 {[%clk 0:03:00]}  Re8 {[%clk 0:02:58]} 9. Qc2 {[%clk 0:03:01]}  h5 {[%clk 0:02:58]} 10. O-O {[%clk 0:03:00]}  h4 {[%clk 0:02:59]} 11. Bf4 {[%clk 0:02:45]}  Na6 {[%clk 0:02:58]} 12. h3 {[%clk 0:02:40]}  Nc7 {[%clk 0:02:58]} 13. Bxd6 {[%clk 0:02:35]}  Qxd6 {[%clk 0:02:59]} 14. Rfe1 {[%clk 0:02:35]}  Bd7 {[%clk 0:02:54]} 15. c4 {[%clk 0:02:34]}  Rad8 {[%clk 0:02:47]} 16. Rad1 {[%clk 0:02:33]}  Bc8 {[%clk 0:02:43]} 17. Bf5 {[%clk 0:01:55]}  Bxf5 {[%clk 0:02:33]} 18. Qxf5 {[%clk 0:01:55]}  Re7 {[%clk 0:02:34]} 19. Nc3 {[%clk 0:01:46]}  g6 {[%clk 0:02:05]} 20. Qg4 {[%clk 0:01:41]}  Rxe1+ {[%clk 0:02:02]} 21. Rxe1 {[%clk 0:01:41]}  f5 {[%clk 0:01:50]} 22. Qxh4 {[%clk 0:01:39]}  Qxd4 {[%clk 0:01:50]} 23. Qxd4 {[%clk 0:01:15]}  Rxd4 {[%clk 0:01:51]} 24. Re7 {[%clk 0:01:15]}  Ne6 {[%clk 0:01:51]} 25. Rxb7 {[%clk 0:01:15]}  a5 {[%clk 0:01:52]} 26. b3 {[%clk 0:01:09]}  Rd3 {[%clk 0:01:52]} 27. Na4 {[%clk 0:01:06]}  Rd1+ {[%clk 0:01:52]} 28. Kh2 {[%clk 0:01:05]}  Rd2 {[%clk 0:01:53]} 29. Kg1 {[%clk 0:00:57]}  Rxa2 {[%clk 0:01:52]} 30. Rb6 {[%clk 0:00:51]}  Nd4 {[%clk 0:01:50]} 31. Rb8+ {[%clk 0:00:46]}  Kg7 {[%clk 0:01:50]} 32. Nc5 {[%clk 0:00:44]}  Ne2+ {[%clk 0:01:46]} 33. Kh2 {[%clk 0:00:43]}  Nd4 {[%clk 0:01:42]} 34. Kg1 {[%clk 0:00:42]}  Rb2 {[%clk 0:01:42]} 35. Ra8 {[%clk 0:00:38]}  Rb1+ {[%clk 0:01:29]} 36. Kh2 {[%clk 0:00:38]}  Rf1 {[%clk 0:01:29]} 37. f3 {[%clk 0:00:31]}  Ra1 {[%clk 0:01:30]} 38. b4 {[%clk 0:00:25]}  Ra2 {[%clk 0:01:27]} 39. Kg1 {[%clk 0:00:24]}  Rc2 {[%clk 0:01:21]} 40. bxa5 {[%clk 0:00:22]}  Rxc4 {[%clk 0:01:21]} 41. Nb7 {[%clk 0:00:20]}  f4 {[%clk 0:01:15]} 42. Nd6 {[%clk 0:00:18]}  Rc1+ {[%clk 0:01:13]} 43. Kf2 {[%clk 0:00:18]}  Rc2+ {[%clk 0:01:14]} 44. Kf1 {[%clk 0:00:18]}  Ra2 {[%clk 0:01:10]} 45. Ra7 {[%clk 0:00:17]}  Kf6 {[%clk 0:01:10]} 46. Nxf7 {[%clk 0:00:16]}  Nf5 {[%clk 0:01:09]} 47. Nd6 {[%clk 0:00:14]}  Ne3+ {[%clk 0:01:08]} 48. Ke1 {[%clk 0:00:13]}  Nxg2+ {[%clk 0:01:08]} 49. Kd1 {[%clk 0:00:14]}  Ne3+ {[%clk 0:01:08]} 50. Kc1 {[%clk 0:00:14]}  Ke5 {[%clk 0:01:07]} 51. Kb1 {[%clk 0:00:12]}  Ra3 {[%clk 0:01:04]} 52. Ne4 {[%clk 0:00:10]}  Nd5 {[%clk 0:01:00]} 53. a6 {[%clk 0:00:09]}  Nb4 {[%clk 0:00:57]} 54. Kb2 {[%clk 0:00:09]}  Rxa6 {[%clk 0:00:56]} 55. Re7+ {[%clk 0:00:08]}  Kd4 {[%clk 0:00:53]} 56. Rd7+ {[%clk 0:00:07]}  Nd5 {[%clk 0:00:53]} 57. Rg7 {[%clk 0:00:08]}  c5 {[%clk 0:00:52]} 58. h4 {[%clk 0:00:04]}  Ke3 {[%clk 0:00:51]} 59. Rd7 {[%clk 0:00:03]}  Nf6 {[%clk 0:00:46]} 60. Nxf6 {[%clk 0:00:02]}  Rxf6 {[%clk 0:00:46]} 61. Rd5 {[%clk 0:00:03]}  Kxf3 {[%clk 0:00:45]} 62. Rxc5 {[%clk 0:00:03]}  Kg3 {[%clk 0:00:45]} 63. Rg5+ {[%clk 0:00:02]}  Kxh4 {[%clk 0:00:46]} 64. Rg1 {[%clk 0:00:00]}  f3 {[%clk 0:00:46]} 0-1


[Site "https://www.chess.com"]

[Event "Titled Tuesday Blitz October 31 Early 2023"]
[White "Le, Quang Liem"]
[Black "Reprintsev, Alexander"]
[WhiteFideId "12401137"]
[BlackFideId "14100541"]
[WhiteElo "3004"]
[BlackElo "2512"]
[Result "1-0"]
[Round "1"]
[TimeControl "180+1"]
[Date "2023.10.31"]
[WhiteClock "0:01:35"]
[BlackClock "0:01:46"]
[Board "13"]

1. Nf3 {[%clk 0:03:00]}  d5 {[%clk 0:02:59]} 2. e3 {[%clk 0:03:00]}  Nc6 {[%clk 0:02:57]} 3. d4 {[%clk 0:02:59]}  Bg4 {[%clk 0:02:56]} 4. c4 {[%clk 0:02:54]}  e6 {[%clk 0:02:56]} 5. Nc3 {[%clk 0:02:51]}  Bb4 {[%clk 0:02:53]} 6. Bd2 {[%clk 0:02:45]}  f5 {[%clk 0:02:51]} 7. Qb3 {[%clk 0:02:30]}  Nf6 {[%clk 0:02:49]} 8. cxd5 {[%clk 0:02:24]}  exd5 {[%clk 0:02:48]} 9. Bb5 {[%clk 0:02:24]}  Bxc3 {[%clk 0:02:43]} 10. Qxc3 {[%clk 0:02:22]}  Bxf3 {[%clk 0:02:33]} 11. Bxc6+ {[%clk 0:02:21]}  bxc6 {[%clk 0:02:33]} 12. Qxc6+ {[%clk 0:02:21]}  Kf7 {[%clk 0:02:33]} 13. gxf3 {[%clk 0:02:21]}  Qd7 {[%clk 0:02:26]} 14. Rc1 {[%clk 0:02:17]}  Rhc8 {[%clk 0:02:19]} 15. Ke2 {[%clk 0:02:05]}  Rab8 {[%clk 0:02:19]} 16. b3 {[%clk 0:02:04]}  Rb6 {[%clk 0:02:18]} 17. Qxd7+ {[%clk 0:02:04]}  Nxd7 {[%clk 0:02:18]} 18. Rc2 {[%clk 0:02:05]}  c6 {[%clk 0:02:16]} 19. Rhc1 {[%clk 0:02:02]}  Nb8 {[%clk 0:02:11]} 20. Kd3 {[%clk 0:01:56]}  Rb7 {[%clk 0:02:09]} 21. Rc5 {[%clk 0:01:52]}  Rd7 {[%clk 0:02:07]} 22. Ra5 {[%clk 0:01:48]}  a6 {[%clk 0:02:00]} 23. Bb4 {[%clk 0:01:41]}  Re8 {[%clk 0:02:00]} 24. Bc5 {[%clk 0:01:40]}  Re6 {[%clk 0:02:00]} 25. Ra4 {[%clk 0:01:36]}  Rh6 {[%clk 0:01:58]} 26. Rb4 {[%clk 0:01:36]}  Rd8 {[%clk 0:01:55]} 27. Rb7+ {[%clk 0:01:36]}  Kg6 {[%clk 0:01:46]} 28. Rg1+ {[%clk 0:01:35]} 1-0


[Site "https://www.chess.com"]

[Event "Titled Tuesday Blitz October 31 Early 2023"]
[White "Alinasab, Mobina"]
[Black "Oparin, Grigoriy"]
[WhiteFideId "12528897"]
[BlackFideId "24125890"]
[WhiteElo "2508"]
[BlackElo "2992"]
[Result "0-1"]
[Round "1"]
[TimeControl "180+1"]
[Date "2023.10.31"]
[WhiteClock "0:00:00"]
[BlackClock "0:00:11"]
[Board "16"]

1. e4 {[%clk 0:03:00]}  c5 {[%clk 0:02:43]} 2. Nf3 {[%clk 0:02:59]}  e6 {[%clk 0:02:43]} 3. d4 {[%clk 0:02:58]}  cxd4 {[%clk 0:02:44]} 4. Nxd4 {[%clk 0:02:59]}  Nf6 {[%clk 0:02:44]} 5. Nc3 {[%clk 0:02:59]}  Nc6 {[%clk 0:02:45]} 6. Be2 {[%clk 0:02:49]}  Bb4 {[%clk 0:02:44]} 7. O-O {[%clk 0:02:45]}  Bxc3 {[%clk 0:02:42]} 8. bxc3 {[%clk 0:02:45]}  Nxe4 {[%clk 0:02:42]} 9. Nxc6 {[%clk 0:02:38]}  dxc6 {[%clk 0:02:43]} 10. Bd3 {[%clk 0:02:37]}  Nxc3 {[%clk 0:02:30]} 11. Qg4 {[%clk 0:02:37]}  O-O {[%clk 0:01:55]} 12. Bh6 {[%clk 0:00:54]}  Qf6 {[%clk 0:01:54]} 13. Bg5 {[%clk 0:00:53]}  Qe5 {[%clk 0:01:54]} 14. Rae1 {[%clk 0:00:47]}  f5 {[%clk 0:01:54]} 15. Qb4 {[%clk 0:00:30]}  Ne4 {[%clk 0:01:54]} 16. Be7 {[%clk 0:00:24]}  Re8 {[%clk 0:01:39]} 17. Bxe4 {[%clk 0:00:22]}  fxe4 {[%clk 0:01:39]} 18. Rxe4 {[%clk 0:00:23]}  a5 {[%clk 0:01:28]} 19. Qe1 {[%clk 0:00:16]}  Qc7 {[%clk 0:00:59]} 20. Bh4 {[%clk 0:00:14]}  a4 {[%clk 0:00:57]} 21. Bg3 {[%clk 0:00:14]}  Qa5 {[%clk 0:00:58]} 22. Qe3 {[%clk 0:00:14]}  e5 {[%clk 0:00:47]} 23. Rxe5 {[%clk 0:00:13]}  Rxe5 {[%clk 0:00:48]} 24. Bxe5 {[%clk 0:00:14]}  Bf5 {[%clk 0:00:48]} 25. Qd4 {[%clk 0:00:10]}  Qd5 {[%clk 0:00:41]} 26. Qc3 {[%clk 0:00:10]}  Qf7 {[%clk 0:00:35]} 27. h3 {[%clk 0:00:11]}  a3 {[%clk 0:00:33]} 28. Rd1 {[%clk 0:00:10]}  Be6 {[%clk 0:00:30]} 29. Bd6 {[%clk 0:00:09]}  Rd8 {[%clk 0:00:25]} 30. Rd3 {[%clk 0:00:08]}  Bf5 {[%clk 0:00:18]} 31. Rd2 {[%clk 0:00:07]}  Qxa2 {[%clk 0:00:17]} 32. g4 {[%clk 0:00:04]}  Bg6 {[%clk 0:00:13]} 33. f4 {[%clk 0:00:01]}  Qe6 {[%clk 0:00:10]} 34. f5 {[%clk 0:00:01]}  Qe1+ {[%clk 0:00:10]} 35. Kg2 {[%clk 0:00:01]}  Rxd6 {[%clk 0:00:11]} 36. Qb3+ {[%clk 0:00:00]}  Bf7 {[%clk 0:00:11]} 0-1


[Site "https://www.chess.com"]

[Event "Titled Tuesday Blitz October 31 Early 2023"]
[White "Le, Tuan Minh"]
[Black "Kubicka, Anna"]
[WhiteFideId "12401153"]
[BlackFideId "1152254"]
[WhiteElo "2979"]
[BlackElo "2506"]
[Result "1-0"]
[Round "1"]
[TimeControl "180+1"]
[Date "2023.10.31"]
[WhiteClock "0:00:55"]
[BlackClock "0:00:04"]
[Board "17"]

1. d4 {[%clk 0:02:46]}  Nf6 {[%clk 0:03:00]} 2. Nf3 {[%clk 0:02:45]}  d5 {[%clk 0:03:00]} 3. c4 {[%clk 0:02:43]}  e6 {[%clk 0:02:59]} 4. Nc3 {[%clk 0:02:43]}  Bb4 {[%clk 0:02:57]} 5. e3 {[%clk 0:02:43]}  O-O {[%clk 0:02:56]} 6. Bd2 {[%clk 0:02:43]}  c5 {[%clk 0:02:55]} 7. a3 {[%clk 0:02:41]}  cxd4 {[%clk 0:02:41]} 8. axb4 {[%clk 0:02:39]}  dxc3 {[%clk 0:02:41]} 9. Bxc3 {[%clk 0:02:40]}  dxc4 {[%clk 0:02:30]} 10. Bxc4 {[%clk 0:02:38]}  Qxd1+ {[%clk 0:02:11]} 11. Rxd1 {[%clk 0:02:36]}  Nbd7 {[%clk 0:02:12]} 12. b5 {[%clk 0:02:32]}  Nb6 {[%clk 0:02:08]} 13. Be2 {[%clk 0:02:23]}  Nfd5 {[%clk 0:01:54]} 14. Bd4 {[%clk 0:02:12]}  f6 {[%clk 0:01:45]} 15. Nd2 {[%clk 0:01:31]}  e5 {[%clk 0:01:33]} 16. Bc5 {[%clk 0:01:31]}  Rd8 {[%clk 0:01:21]} 17. Ne4 {[%clk 0:01:23]}  Be6 {[%clk 0:00:40]} 18. Ba3 {[%clk 0:01:17]}  Rd7 {[%clk 0:00:25]} 19. Nc5 {[%clk 0:01:15]}  Re7 {[%clk 0:00:18]} 20. g3 {[%clk 0:01:09]}  Ree8 {[%clk 0:00:16]} 21. e4 {[%clk 0:01:09]}  Nc7 {[%clk 0:00:12]} 22. Nxb7 {[%clk 0:01:09]}  Nc4 {[%clk 0:00:11]} 23. Bxc4 {[%clk 0:01:06]}  Bxc4 {[%clk 0:00:12]} 24. Rc1 {[%clk 0:01:03]}  Nxb5 {[%clk 0:00:06]} 25. Rxc4 {[%clk 0:01:00]}  Rab8 {[%clk 0:00:06]} 26. Nd6 {[%clk 0:00:54]}  Nxa3 {[%clk 0:00:04]} 27. bxa3 {[%clk 0:00:55]}  Rb1+ {[%clk 0:00:04]} 28. Ke2 {[%clk 0:00:55]}  Rxh1 {[%clk 0:00:04]} 29. Nxe8 {[%clk 0:00:56]}  Rxh2 {[%clk 0:00:05]} 30. Rc7 {[%clk 0:00:56]}  h5 {[%clk 0:00:04]} 31. Nxg7 {[%clk 0:00:55]}  h4 {[%clk 0:00:04]} 32. gxh4 {[%clk 0:00:54]}  Rxh4 {[%clk 0:00:05]} 33. f3 {[%clk 0:00:54]}  Rh2+ {[%clk 0:00:05]} 34. Ke3 {[%clk 0:00:54]}  Ra2 {[%clk 0:00:06]} 35. Rxa7 {[%clk 0:00:54]}  Rb2 {[%clk 0:00:06]} 36. Nh5 {[%clk 0:00:54]}  Rb3+ {[%clk 0:00:04]} 37. Kf2 {[%clk 0:00:55]} 1-0


[Site "https://www.chess.com"]

[Event "Titled Tuesday Blitz October 31 Early 2023"]
[White "Tomb, Maroun"]
[Black "Zhigalko, Sergei"]
[WhiteFideId "5300398"]
[BlackFideId "13502956"]
[WhiteElo "2502"]
[BlackElo "2967"]
[Result "1/2-1/2"]
[Round "1"]
[TimeControl "180+1"]
[Date "2023.10.31"]
[WhiteClock "0:00:55"]
[BlackClock "0:00:04"]
[Board "20"]

1. e4 {[%clk 0:02:57]}  c5 {[%clk 0:03:00]} 2. Ne2 {[%clk 0:02:58]}  Nc6 {[%clk 0:03:00]} 3. Nbc3 {[%clk 0:02:58]}  Nf6 {[%clk 0:03:00]} 4. g3 {[%clk 0:02:58]}  g6 {[%clk 0:02:52]} 5. d4 {[%clk 0:02:59]}  cxd4 {[%clk 0:02:52]} 6. Nxd4 {[%clk 0:02:59]}  d6 {[%clk 0:02:50]} 7. Nde2 {[%clk 0:03:00]}  Bg7 {[%clk 0:02:50]} 8. Bg2 {[%clk 0:03:00]}  O-O {[%clk 0:02:50]} 9. O-O {[%clk 0:03:01]}  Nd7 {[%clk 0:02:46]} 10. a4 {[%clk 0:02:56]}  b6 {[%clk 0:02:46]} 11. e5 {[%clk 0:02:50]}  Bb7 {[%clk 0:02:42]} 12. exd6 {[%clk 0:02:50]}  Nc5 {[%clk 0:02:38]} 13. dxe7 {[%clk 0:02:46]}  Qxe7 {[%clk 0:02:39]} 14. Nd5 {[%clk 0:02:36]}  Qd8 {[%clk 0:02:35]} 15. Nec3 {[%clk 0:02:33]}  Re8 {[%clk 0:02:29]} 16. Be3 {[%clk 0:02:30]}  Ne5 {[%clk 0:02:24]} 17. b3 {[%clk 0:02:24]}  Rc8 {[%clk 0:02:15]} 18. Qe2 {[%clk 0:02:15]}  h5 {[%clk 0:01:31]} 19. h3 {[%clk 0:02:15]}  Nc6 {[%clk 0:01:14]} 20. Rad1 {[%clk 0:02:14]}  Nd4 {[%clk 0:01:14]} 21. Qd2 {[%clk 0:02:01]}  Nf5 {[%clk 0:01:11]} 22. Bg5 {[%clk 0:01:58]}  f6 {[%clk 0:00:57]} 23. Bf4 {[%clk 0:01:48]}  g5 {[%clk 0:00:52]} 24. Be3 {[%clk 0:01:29]}  Nxe3 {[%clk 0:00:51]} 25. Nxe3 {[%clk 0:01:26]}  Qxd2 {[%clk 0:00:27]} 26. Rxd2 {[%clk 0:01:26]}  Bxg2 {[%clk 0:00:27]} 27. Kxg2 {[%clk 0:01:27]}  Nxb3 {[%clk 0:00:28]} 28. cxb3 {[%clk 0:01:18]}  Rxc3 {[%clk 0:00:28]} 29. Nf5 {[%clk 0:01:14]}  Bf8 {[%clk 0:00:21]} 30. Rd7 {[%clk 0:01:07]}  a5 {[%clk 0:00:21]} 31. g4 {[%clk 0:01:01]}  hxg4 {[%clk 0:00:15]} 32. hxg4 {[%clk 0:01:01]}  Rxb3 {[%clk 0:00:15]} 33. Rh1 {[%clk 0:01:00]}  Rb4 {[%clk 0:00:15]} 34. Kg3 {[%clk 0:00:57]}  Rxa4 {[%clk 0:00:10]} 35. Nh6+ {[%clk 0:00:57]}  Bxh6 {[%clk 0:00:07]} 36. Rxh6 {[%clk 0:00:57]}  Rf4 {[%clk 0:00:04]} 37. Rg6+ {[%clk 0:00:56]}  Kh8 {[%clk 0:00:03]} 38. Rgg7 {[%clk 0:00:53]}  Rb8 {[%clk 0:00:03]} 39. Rh7+ {[%clk 0:00:53]}  Kg8 {[%clk 0:00:03]} 40. Rdg7+ {[%clk 0:00:54]}  Kf8 {[%clk 0:00:03]} 41. Ra7 {[%clk 0:00:55]}  Kg8 {[%clk 0:00:03]} 42. Rhg7+ {[%clk 0:00:55]}  Kh8 {[%clk 0:00:03]} 43. Rh7+ {[%clk 0:00:56]}  Kg8 {[%clk 0:00:04]} 44. Rag7+ {[%clk 0:00:55]}  Kf8 {[%clk 0:00:04]} 45. Rc7 {[%clk 0:00:55]}  Kg8 {[%clk 0:00:04]} 46. Rcg7+ {[%clk 0:00:55]} 1/2-1/2


[Site "https://www.chess.com"]